fUST/lending_fUST_20250619
["ID","MTS","AMOUNT","RATE_DAILY","PERIOD"]
[366522084,1750301440380,-913.22,0.00022191,6]
[366522085,1750301440389,-452.33745152,0.00022191,6]
[366522088,1750301440408,-344.72578078,0.00022191,6]
[366522097,1750301440480,-1401.87421922,0.00022191,6]
[366522099,1750301440489,-449.51755106,0.00022191,6]
[366522101,1750301440499,-460.0,0.00022191,6]
[366522103,1750301440509,-1371.44,0.00022191,6]
[366522105,1750301440519,-460.0,0.00022191,6]
[366522107,1750301440528,-476.89,0.00022191,6]
[366522109,1750301440538,-160.0,0.00022191,6]
[366522111,1750301440548,-460.0,0.00022191,6]
[366522113,1750301440558,-460.0,0.00022191,6]
[366522115,1750301440567,-460.0,0.00022191,6]
[366522117,1750301440577,-166.0,0.00022192,7]
[366522119,1750301440587,-95224.66,0.000222,7]
[366522121,1750301440597,-1715.45188654,0.00022257,2]
[366522123,1750301440606,-161.95528524,0.00022279,2]
[366522124,1750301440616,-160.0,0.0002231,2]
[366522125,1750301440625,-160.0,0.0002231,2]
[366522126,1750301440635,-12544.68530873,0.0002231,2]
[366522127,1750301440645,-160.0,0.00022357,2]
[366522128,1750301440654,-160.0,0.00022357,2]
[366522129,1750301440664,-160.0,0.00022357,2]
[366522130,1750301440674,-160.0,0.00022357,2]
[366522131,1750301440684,-213.47708638,0.00022357,2]
[366522132,1750301440694,-160.0,0.00022357,2]
[366522133,1750301440704,-230.0259007,0.00022357,2]
[366522134,1750301440715,-400.0,0.00022465,6]
[366522135,1750301440724,-427.01170595,0.00022465,6]
[366522136,1750301440734,-460.0,0.00022465,6]
[366522137,1750301440743,-460.0,0.00022465,6]
[366522138,1750301440752,-460.0,0.00022465,6]
[366522139,1750301440762,-460.0,0.00022465,6]
[366522140,1750301440771,-460.0,0.00022465,6]
[366522141,1750301440782,-460.0,0.00022465,6]
[366522142,1750301440791,-490.17,0.00022465,6]
[366522143,1750301440801,-293.53,0.00022465,6]
[366522144,1750301440810,-460.0,0.00022465,6]
[366522145,1750301440819,-460.0,0.00022465,6]
[366522147,1750301440829,-460.0,0.00022465,6]
[366522149,1750301440838,-460.0,0.00022465,6]
[366522151,1750301440847,-460.0,0.00022465,6]
[366522153,1750301440857,-460.0,0.00022465,6]
[366522155,1750301440866,-460.0,0.00022465,6]
[366522157,1750301440875,-460.0,0.00022465,6]
[366522159,1750301440885,-460.0,0.00022465,6]
[366522161,1750301440894,-460.0,0.00022465,6]
[366522163,1750301440904,-586.87,0.00022465,6]
[366522165,1750301440914,-661.8,0.00022465,6]
[366522167,1750301440923,-788.73,0.00022465,6]
[366522169,1750301440932,-460.0,0.00022465,6]
[366522170,1750301440942,-460.0,0.00022465,6]
[366522172,1750301440951,-460.0,0.00022465,6]
[366522174,1750301440960,-1237.83,0.00022465,6]
[366522176,1750301440970,-423.3510889,0.00022465,6]
[366522178,1750301440979,-2477.71,0.00022465,6]
[366522180,1750301440988,-460.0,0.00022465,6]
[366522182,1750301440998,-460.0,0.00022465,6]
[366522184,1750301441007,-1760.99,0.00022465,6]
[366522187,1750301441021,-1186.47,0.00022465,6]
[366522189,1750301441030,-492.11,0.00022465,6]
[366522191,1750301441039,-803.4,0.00022465,6]
[366522193,1750301441049,-460.0,0.00022465,6]
[366522195,1750301441058,-460.0,0.00022465,6]
[366522196,1750301441067,-460.0,0.00022465,6]
[366522199,1750301441082,-445.39,0.00022465,6]
[366522201,1750301441092,-460.0,0.00022465,6]
[366522203,1750301441102,-460.0,0.00022465,6]
[366522205,1750301441111,-460.0,0.00022465,6]
[366522207,1750301441122,-524.26,0.00022465,6]
[366522209,1750301441131,-569.69,0.00022465,6]
[366522211,1750301441141,-460.0,0.00022465,6]
[366522213,1750301441151,-231.42,0.00022465,6]
[366522215,1750301441160,-510.59,0.00022465,6]
[366522217,1750301441170,-706.08,0.00022465,6]
[366522219,1750301441179,-460.0,0.00022465,6]
[366522221,1750301441189,-460.0,0.00022465,6]
[366522223,1750301441198,-460.0,0.00022465,6]
[366522225,1750301441207,-460.0,0.00022465,6]
[366522227,1750301441217,-460.0,0.00022465,6]
[366522229,1750301441227,-460.0,0.00022465,6]
[366522231,1750301441236,-460.0,0.00022465,6]
[366522233,1750301441245,-460.0,0.00022465,6]
[366522235,1750301441255,-460.0,0.00022465,6]
[366522237,1750301441264,-460.0,0.00022465,6]
[366522239,1750301441273,-460.0,0.00022465,6]
[366522241,1750301441283,-460.0,0.00022465,6]
[366522243,1750301441292,-300.0,0.00022465,2]
[366522245,1750301441303,-460.0,0.00022465,6]
[366522247,1750301441312,-460.0,0.00022465,6]
[366522249,1750301441323,-1529.08,0.00022465,6]
[366522251,1750301441332,-460.0,0.00022465,6]
[366522253,1750301441341,-913.22,0.00022465,6]
[366522255,1750301441351,-1746.6,0.00022465,6]
[366522257,1750301441360,-460.0,0.00022465,6]
[366522258,1750301441369,-1371.44,0.00022465,6]
[366522260,1750301441379,-460.0,0.00022465,6]
[366522262,1750301441389,-460.0,0.00022465,6]
[366522264,1750301441398,-460.0,0.00022465,6]
[366522266,1750301441407,-424.78309573,0.00022471,2]
[366522268,1750301441416,-845.93775772,0.00022471,2]
[366522270,1750301441426,-160.0,0.00022471,2]
[366522272,1750301441436,-836.1357872,0.00022471,2]
[366522274,1750301441446,-207.4,0.00022517,2]
[366522276,1750301441457,-1688.0,0.00022517,2]
[366522278,1750301441467,-503.73758269,0.00022521,2]
[366522280,1750301441478,-1750.456,0.00022572,2]
[366522282,1750301441487,-1815.222872,0.00022627,2]
[366522284,1750301441497,-151.0,0.00022631,2]
[366522286,1750301441507,-152.75356399,0.00022631,2]
[366522288,1750301441517,-162.79,0.00022631,2]
[366522290,1750301441526,-151.0,0.00022631,2]
[366522291,1750301441537,-151.0,0.00022631,2]
[366522293,1750301441546,-500.0,0.00022631,2]
[366522295,1750301441556,-500.0,0.00022631,2]
[366522297,1750301441566,-151.0,0.00022631,2]
[366522299,1750301441576,-500.0,0.00022631,2]
[366522302,1750301441588,-5000.0,0.00022631,2]
[366522304,1750301441598,-151.0,0.00022631,2]
[366522306,1750301441608,-500.0,0.00022631,2]
[366522307,1750301441618,-500.0,0.00022631,2]
[366522309,1750301441627,-500.0,0.00022631,2]
[366522311,1750301441637,-500.0,0.00022631,2]
[366522313,1750301441646,-151.0,0.00022631,2]
[366522315,1750301441656,-500.0,0.00022631,2]
[366522317,1750301441665,-500.0,0.00022631,2]
[366522319,1750301441674,-500.0,0.00022631,2]
[366522321,1750301441684,-151.0,0.00022631,2]
[366522322,1750301441693,-500.0,0.00022631,2]
[366522323,1750301441703,-1414.88350742,0.00022631,2]
[366522324,1750301441713,-500.0,0.00022631,2]
[366522325,1750301441723,-500.0,0.00022631,2]
[366522326,1750301441732,-151.0,0.00022631,2]
[366522328,1750301441742,-500.0,0.00022631,2]
[366522329,1750301441751,-500.0,0.00022631,2]
[366522330,1750301441763,-500.0,0.00022631,2]
[366522331,1750301441772,-151.0,0.00022631,2]
[366522333,1750301441782,-500.0,0.00022631,2]
[366522335,1750301441791,-500.0,0.00022631,2]
[366522337,1750301441801,-500.0,0.00022631,2]
[366522339,1750301441810,-151.0,0.00022631,2]
[366522341,1750301441820,-500.0,0.00022631,2]
[366522343,1750301441829,-500.0,0.00022631,2]
[366522345,1750301441839,-151.0,0.00022631,2]
[366522347,1750301441848,-500.0,0.00022631,2]
[366522349,1750301441858,-500.0,0.00022631,2]
[366522351,1750301441867,-151.0,0.00022631,2]
[366522353,1750301441877,-500.0,0.00022631,2]
[366522369,1750301442002,-500.0,0.00022631,2]
[366522371,1750301442031,-151.0,0.00022631,2]
[366522373,1750301442041,-500.0,0.00022631,2]
[366522375,1750301442051,-500.0,0.00022631,2]
[366522377,1750301442060,-151.0,0.00022631,2]
[366522379,1750301442072,-500.0,0.00022631,2]
[366522381,1750301442083,-500.0,0.00022631,2]
[366522383,1750301442092,-500.0,0.00022631,2]
[366522385,1750301442102,-201.77647067,0.00022631,2]
[366522387,1750301442111,-500.0,0.00022631,2]
[366522389,1750301442121,-500.0,0.00022631,2]
[366522391,1750301442131,-500.0,0.00022631,2]
[366522393,1750301442142,-500.0,0.00022631,2]
[366522396,1750301442154,-500.0,0.00022631,2]
[366522397,1750301442164,-500.0,0.00022631,2]
[366522399,1750301442173,-500.0,0.00022631,2]
[366522401,1750301442182,-171.96145907,0.00022631,2]
[366522403,1750301442192,-500.0,0.00022631,2]
[366522405,1750301442201,-500.0,0.00022631,2]
[366522407,1750301442211,-210.8812712,0.00022631,2]
[366522409,1750301442221,-25000.0,0.00022631,2]
[366522411,1750301442230,-17806.2727904,0.00022631,2]
[366522413,1750301442240,-3785.3233204,0.00022644,2]
[366522415,1750301442249,-1882.38611826,0.00022682,2]
[366522416,1750301442258,-1952.03440464,0.00022737,2]
[366522417,1750301442268,-460.0,0.00022739,6]
[366522418,1750301442277,-460.0,0.00022739,6]
[366522419,1750301442286,-333.055272,0.00022739,6]
[366522420,1750301442296,-460.0,0.00022739,6]
[366522421,1750301442304,-490.17,0.00022739,6]
[366522422,1750301442314,-460.0,0.00022739,6]
[366522423,1750301442323,-460.0,0.00022739,6]
[366522424,1750301442341,-460.0,0.00022739,6]
[366522425,1750301442354,-272.94915338,0.00022739,6]
[366522426,1750301442364,-460.0,0.00022739,6]
[366522427,1750301442374,-460.0,0.00022739,6]
[366522428,1750301442384,-661.8,0.00022739,6]
[366522429,1750301442395,-788.73,0.00022739,6]
[366522430,1750301442406,-460.0,0.00022739,6]
[366522431,1750301442415,-460.0,0.00022739,6]
[366522432,1750301442425,-1237.83,0.00022739,6]
[366522433,1750301442436,-2477.71,0.00022739,6]
[366522434,1750301442446,-460.0,0.00022739,6]
[366522435,1750301442456,-1760.99,0.00022739,6]
[366522436,1750301442467,-1186.47,0.00022739,6]
[366522437,1750301442476,-803.4,0.00022739,6]
[366522438,1750301442486,-479.04,0.00022739,6]
[366522439,1750301442495,-460.0,0.00022739,6]
[366522440,1750301442505,-368.51,0.00022739,6]
[366522441,1750301442514,-460.0,0.00022739,6]
[366522442,1750301442524,-460.0,0.00022739,6]
[366522443,1750301442534,-460.0,0.00022739,6]
[366522444,1750301442544,-524.26,0.00022739,6]
[366522445,1750301442555,-569.69,0.00022739,6]
[366522446,1750301442565,-503.89,0.00022739,6]
[366522447,1750301442574,-510.59,0.00022739,6]
[366522448,1750301442584,-706.08,0.00022739,6]
[366522449,1750301442594,-563.33,0.00022739,6]
[366522450,1750301442604,-313.74,0.00022739,6]
[366522451,1750301442614,-460.0,0.00022739,6]
[366522452,1750301442624,-460.39295255,0.00022739,6]
[366522453,1750301442635,-460.0,0.00022739,6]
[366522454,1750301442644,-460.0,0.00022739,6]
[366522455,1750301442654,-460.0,0.00022739,6]
[366522456,1750301442663,-460.0,0.00022739,6]
[366522457,1750301442672,-460.25,0.00022739,6]
[366522458,1750301442682,-460.0,0.00022739,6]
[366522459,1750301442691,-460.0,0.00022739,6]
[366522460,1750301442701,-300.0,0.00022739,2]
[366522461,1750301442711,-460.0,0.00022739,6]
[366522462,1750301442722,-460.0,0.00022739,6]
[366522463,1750301442732,-1529.08,0.00022739,6]
[366522464,1750301442741,-913.22,0.00022739,6]
[366522465,1750301442751,-1746.6,0.00022739,6]
[366522466,1750301442760,-460.0,0.00022739,6]
[366522467,1750301442770,-1371.44,0.00022739,6]
[366522469,1750301442780,-460.0,0.00022739,6]
[366522471,1750301442790,-460.0,0.00022739,6]
[366522472,1750301442799,-161.95528524,0.00022742,2]
[366522473,1750301442810,-425.80797303,0.00022792,2]
[366522474,1750301442819,-1715.45188652,0.00022817,2]
[366522475,1750301442829,-8324.91009827,0.0002299,2]
[366522476,1750301442839,-460.0,0.00023013,6]
[366522477,1750301442849,-460.0,0.00023013,6]
[366522478,1750301442859,-490.17,0.00023013,6]
[366522479,1750301442868,-460.0,0.00023013,6]
[366522480,1750301442877,-460.0,0.00023013,6]
[366522481,1750301442887,-460.0,0.00023013,6]
[366522482,1750301442896,-661.8,0.00023013,6]
[366522483,1750301442905,-788.73,0.00023013,6]
[366522484,1750301442915,-386.55986474,0.00023013,6]
[366522485,1750301442924,-460.0,0.00023013,6]
[366522486,1750301442934,-1237.83,0.00023013,6]
[366522487,1750301442943,-2477.71,0.00023013,6]
[366522488,1750301442952,-460.0,0.00023013,6]
[366522489,1750301442961,-1760.99,0.00023013,6]
[366522491,1750301442970,-1186.47,0.00023013,6]
[366522492,1750301442979,-803.4,0.00023013,6]
[366522493,1750301442989,-460.0,0.00023013,6]
[366522494,1750301442998,-460.0,0.00023013,6]
[366522495,1750301443007,-460.0,0.00023013,6]
[366522496,1750301443016,-524.26,0.00023013,6]
[366522497,1750301443026,-569.69,0.00023013,6]
[366522498,1750301443035,-510.59,0.00023013,6]
[366522499,1750301443044,-706.08,0.00023013,6]
[366522500,1750301443053,-584.48300459,0.00023013,6]
[366522502,1750301443063,-460.0,0.00023013,6]
[366522503,1750301443074,-460.0,0.00023013,6]
[366522504,1750301443085,-460.0,0.00023013,6]
[366522505,1750301443095,-460.0,0.00023013,6]
[366522506,1750301443104,-447.5,0.00023013,6]
[366522507,1750301443114,-349.19,0.00023013,2]
[366522508,1750301443124,-460.0,0.00023013,6]
[366522509,1750301443133,-460.0,0.00023013,6]
[366522510,1750301443143,-1529.08,0.00023013,6]
[366522511,1750301443153,-913.22,0.00023013,6]
[366522512,1750301443163,-1746.6,0.00023013,6]
[366522513,1750301443172,-460.0,0.00023013,6]
[366522514,1750301443181,-1371.44,0.00023013,6]
[366522515,1750301443190,-515.47307046,0.00023013,6]
[366522516,1750301443200,-590.96,0.00023013,6]
[366522518,1750301443209,-166.0,0.00023014,7]
[366522519,1750301443222,-208.0,0.00023076,2]
[366522520,1750301443233,-158.55143993,0.00023109,2]
[366522521,1750301443243,-5000.0,0.00023179,2]
[366522522,1750301443253,-25000.0,0.00023179,2]
[366522523,1750301443263,-2922.02556888,0.00023186,2]
[366522524,1750301443273,-161.95528524,0.00023204,2]
[366522525,1750301443283,-202.0,0.00023234,2]
[366522526,1750301443293,-460.0,0.00023287,6]
[366522527,1750301443302,-582.37,0.00023287,6]
[366522528,1750301443312,-490.17,0.00023287,6]
[366522529,1750301443321,-460.0,0.00023287,6]
[366522530,1750301443331,-460.0,0.00023287,6]
[366522531,1750301443341,-460.0,0.00023287,6]
[366522532,1750301443351,-661.8,0.00023287,6]
[366522533,1750301443361,-788.73,0.00023287,6]
[366522534,1750301443370,-175.9,0.00023287,6]
[366522535,1750301443379,-1237.83,0.00023287,6]
[366522536,1750301443389,-2477.71,0.00023287,6]
[366522537,1750301443398,-460.0,0.00023287,6]
[366522538,1750301443407,-1760.99,0.00023287,6]
[366522539,1750301443416,-1186.47,0.00023287,6]
[366522540,1750301443426,-803.4,0.00023287,6]
[366522541,1750301443436,-460.0,0.00023287,6]
[366522542,1750301443445,-460.0,0.00023287,6]
[366522543,1750301443455,-460.0,0.00023287,6]
[366522544,1750301443468,-524.26,0.00023287,6]
[366522545,1750301443478,-569.69,0.00023287,6]
[366522546,1750301443488,-510.59,0.00023287,6]
[366522547,1750301443498,-706.08,0.00023287,6]
[366522548,1750301443508,-460.0,0.00023287,6]
[366522549,1750301443518,-544.19,0.00023287,6]
[366522550,1750301443529,-460.0,0.00023287,6]
[366522551,1750301443539,-460.0,0.00023287,6]
[366522552,1750301443548,-460.0,0.00023287,6]
[366522553,1750301443558,-1529.08,0.00023287,6]
[366522554,1750301443567,-913.22,0.00023287,6]
[366522555,1750301443576,-1746.6,0.00023287,6]
[366522556,1750301443586,-460.0,0.00023287,6]
[366522557,1750301443596,-1371.44,0.00023287,6]
[366522558,1750301443606,-1715.45188652,0.00023378,2]
[366522559,1750301443615,-306.0,0.00023507,2]
[366522560,1750301443625,-1026.743407,0.0002352,3]
[366522561,1750301443635,-1663.64963222,0.00023532,2]
[366522562,1750301443645,-460.0,0.00023561,6]
[366522563,1750301443655,-490.17,0.00023561,6]
[366522564,1750301443664,-175.0,0.00023561,6]
[366522565,1750301443674,-299.78724908,0.00023561,6]
[366522566,1750301443683,-661.8,0.00023561,6]
[366522567,1750301443694,-788.73,0.00023561,6]
[366522568,1750301443704,-1237.83,0.00023561,6]
[366522569,1750301443713,-2477.71,0.00023561,6]
[366522571,1750301443722,-460.0,0.00023561,6]
[366522573,1750301443731,-1760.99,0.00023561,6]
[366522575,1750301443741,-1186.47,0.00023561,6]
[366522578,1750301443750,-803.4,0.00023561,6]
[366522580,1750301443761,-460.0,0.00023561,6]
[366522582,1750301443770,-344.0,0.00023561,6]
[366522583,1750301443779,-168.84,0.00023561,6]
[366522584,1750301443790,-524.26,0.00023561,6]
[366522585,1750301443799,-569.69,0.00023561,6]
[366522586,1750301443809,-510.59,0.00023561,6]
[366522587,1750301443819,-706.08,0.00023561,6]
[366522588,1750301443828,-460.0,0.00023561,6]
[366522589,1750301443838,-460.0,0.00023561,6]
[366522591,1750301443847,-460.0,0.00023561,6]
[366522594,1750301443857,-460.0,0.00023561,6]
[366522596,1750301443867,-1529.08,0.00023561,6]
[366522598,1750301443877,-913.22,0.00023561,6]
[366522600,1750301443887,-1746.6,0.00023561,6]
[366522602,1750301443898,-460.0,0.00023561,6]
[366522603,1750301443907,-1371.44,0.00023561,6]
[366522604,1750301443917,-168.0,0.00023571,2]
[366522605,1750301443926,-409.93374884,0.00023573,2]
[366522606,1750301443936,-161.95528524,0.00023666,2]
[366522607,1750301443946,-421.58463103,0.00023687,2]
[366522608,1750301443956,-345.17380086,0.000237,2]
[366522609,1750301443965,-893.12809125,0.00023725,2]
[366522610,1750301443975,-5000.0,0.00023727,2]
[366522611,1750301443984,-2526.84532627,0.00023788,2]
[366522612,1750301443994,-965.0,0.00023794,2]
[366522613,1750301444003,-654.0,0.00023794,2]
[366522614,1750301444013,-2161.0,0.00023794,2]
[366522615,1750301444022,-95224.66,0.000238,7]
[366522616,1750301444032,-420.0,0.00023816,2]
[366522617,1750301444042,-420.0,0.00023817,2]
[366522618,1750301444051,-460.0,0.00023835,6]
[366522619,1750301444061,-490.17,0.00023835,6]
[366522620,1750301444071,-661.8,0.00023835,6]
[366522622,1750301444084,-788.73,0.00023835,6]
[366522623,1750301444094,-1237.83,0.00023835,6]
[366522626,1750301444104,-2477.71,0.00023835,6]
[366522628,1750301444115,-460.0,0.00023835,6]
[366522630,1750301444126,-1760.99,0.00023835,6]
[366522632,1750301444135,-1186.47,0.00023835,6]
[366522634,1750301444145,-803.4,0.00023835,6]
[366522636,1750301444155,-460.0,0.00023835,6]
[366522638,1750301444165,-524.26,0.00023835,6]
[366522640,1750301444175,-569.69,0.00023835,6]
[366522642,1750301444184,-510.59,0.00023835,6]
[366522644,1750301444194,-706.08,0.00023835,6]
[366522646,1750301444203,-460.0,0.00023835,6]
[366522648,1750301444213,-460.0,0.00023835,6]
[366522650,1750301444223,-249.65876816,0.00023835,6]
[366522652,1750301444232,-460.0,0.00023835,6]
[366522654,1750301444241,-1529.08,0.00023835,6]
[366522656,1750301444251,-913.22,0.00023835,6]
[366522658,1750301444261,-1746.6,0.00023835,6]
[366522660,1750301444270,-460.0,0.00023835,6]
[366522662,1750301444280,-1371.44,0.00023835,6]
[366522664,1750301444290,-518.41571318,0.00023871,2]
[366522666,1750301444300,-215.0738,0.00023886,2]
[366522668,1750301444311,-1498.1,0.000239,2]
[366522670,1750301444320,-858.236827,0.000239,5]
[366522672,1750301444329,-290732.20007,0.00023916,4]
[366522674,1750301444339,-160.0,0.00023917,7]
[366522676,1750301444348,-2000.0,0.00023917,7]
[366522677,1750301444358,-2000.0,0.00023917,7]
[366522679,1750301444368,-2000.0,0.00023917,7]
[366522682,1750301444378,-2000.0,0.00023917,7]
[366522683,1750301444387,-2000.0,0.00023917,7]
[366522685,1750301444396,-2000.0,0.00023917,7]
[366522687,1750301444405,-2000.0,0.00023917,7]
[366522689,1750301444414,-2000.0,0.00023917,7]
[366522691,1750301444423,-2000.0,0.00023917,7]
[366522693,1750301444433,-2000.0,0.00023917,7]
[366522695,1750301444442,-1505.05006811,0.00023917,7]
[366522697,1750301444452,-151.0,0.00023929,2]
[366522699,1750301444461,-151.38447872,0.00023929,2]
[366522702,1750301444470,-500.0,0.00023929,2]
[366522703,1750301444523,-500.0,0.00023929,2]
[366522704,1750301444532,-151.01841135,0.00023929,2]
[366522705,1750301444541,-151.0,0.00023929,2]
[366522706,1750301444551,-500.0,0.00023929,2]
[366522707,1750301444561,-151.0,0.00023929,2]
[366522708,1750301444571,-151.0,0.00023929,2]
[366522709,1750301444580,-151.0,0.00023929,2]
[366522710,1750301444589,-151.0,0.00023929,2]
[366522711,1750301444598,-198.5405104,0.00023929,2]
[366522712,1750301444608,-500.0,0.00023929,2]
[366522713,1750301444617,-214.21196469,0.00023929,2]
[366522714,1750301444626,-151.0,0.00023929,2]
[366522715,1750301444636,-500.0,0.00023929,2]
[366522716,1750301444645,-151.28406849,0.00023929,2]
[366522717,1750301444654,-151.84841053,0.00023929,2]
[366522718,1750301444663,-151.71499628,0.00023929,2]
[366522719,1750301444672,-500.0,0.00023929,2]
[366522720,1750301444681,-480.0,0.00023929,2]
[366522721,1750301444693,-1715.45188652,0.00023938,2]
[366522722,1750301444703,-151.0,0.0002394,7]
[366522723,1750301444713,-151.0,0.0002394,7]
[366522724,1750301444722,-500.0,0.00023956,2]
[366522725,1750301444731,-500.0,0.00023956,2]
[366522726,1750301444741,-151.0,0.00023956,2]
[366522727,1750301444751,-500.0,0.00023956,2]
[366522728,1750301444760,-228.2560716,0.00023956,2]
[366522729,1750301444769,-198.0,0.00023956,2]
[366522730,1750301444778,-151.0,0.00023956,2]
[366522731,1750301444788,-500.0,0.00023956,2]
[366522732,1750301444797,-242.88190379,0.00023956,2]
[366522733,1750301444807,-500.0,0.00023956,2]
[366522734,1750301444816,-500.0,0.00023956,2]
[366522735,1750301444825,-500.74970608,0.00023973,2]
[366522736,1750301444835,-501.56306537,0.00023973,2]
[366522737,1750301444844,-500.0,0.00023973,2]
[366522738,1750301444854,-501.76440784,0.00023973,2]
[366522739,1750301444863,-202.42702831,0.00023973,2]
[366522740,1750301444872,-500.0,0.00023973,2]
[366522741,1750301444881,-510.87832922,0.00023973,2]
[366522742,1750301444890,-487.07405773,0.00023973,2]
[366522743,1750301444900,-516.25440347,0.00023973,2]
[366522744,1750301444909,-500.0,0.00023973,2]
[366522745,1750301444919,-500.0,0.00023973,2]
[366522746,1750301444928,-575.03349062,0.00023973,2]
[366522747,1750301444937,-600.0,0.00023973,2]
[366522748,1750301444947,-336.3622806,0.00023973,2]
[366522749,1750301444956,-500.0,0.00023973,2]
[366522750,1750301444965,-503.68176092,0.00023973,2]
[366522751,1750301444974,-500.0,0.00023973,2]
[366522752,1750301444984,-501.47250456,0.00023973,2]
[366522753,1750301444993,-500.0,0.00023973,2]
[366522754,1750301445002,-500.0,0.00023973,2]
[366522755,1750301445011,-500.0,0.00023973,2]
[366522756,1750301445021,-500.0,0.00023984,2]
[366522757,1750301445030,-200.03918375,0.00023984,2]
[366522758,1750301445039,-151.0,0.00023984,2]
[366522759,1750301445049,-500.0,0.00023984,2]
[366522760,1750301445059,-151.0,0.00023984,2]
[366522761,1750301445069,-500.0,0.00023984,2]
[366522762,1750301445082,-500.0,0.00023984,2]
[366522763,1750301445092,-500.0,0.00023984,2]
[366522764,1750301445101,-169951.83918527,0.00024,2]
[366522765,1750301445111,-229.98435572,0.00024,7]
[366522766,1750301445121,-1000.0,0.00024,2]
[366522767,1750301445130,-1000.0,0.00024,2]
[366522768,1750301445139,-1000.0,0.00024,2]
[366522769,1750301445150,-1000.0,0.00024,2]
[366522770,1750301445159,-1000.0,0.00024,2]
[366522771,1750301445168,-1000.0,0.00024,2]
[366522772,1750301445178,-1000.0,0.00024,2]
[366522773,1750301445188,-160.0,0.00024,7]
[366522774,1750301445197,-1404.1,0.00024,7]
[366522775,1750301445207,-4631.03254852,0.00024,4]
[366522776,1750301445217,-8488.51283661,0.00024,2]
[366522777,1750301445227,-480.12,0.00024,7]
[366522778,1750301445237,-3000.0,0.00024,2]
[366522779,1750301445247,-303.18980118,0.00024,7]
[366522780,1750301445256,-250.0,0.00024,2]
[366522781,1750301445266,-151.0,0.00024,7]
[366522782,1750301445276,-151.0,0.00024,7]
[366522783,1750301445286,-158.013251,0.00024,7]
[366522784,1750301445295,-151.0,0.00024,7]
[366522785,1750301445305,-151.0,0.00024,7]
[366522786,1750301445315,-215.281789,0.00024,7]
[366522787,1750301445325,-215.281789,0.00024,7]
[366522788,1750301445335,-151.0,0.00024,7]
[366522789,1750301445344,-151.0,0.00024,7]
[366522790,1750301445353,-2000.0,0.00024,2]
[366522791,1750301445363,-163.70499444,0.00024,2]
[366522792,1750301445372,-500.0,0.00024,30]
[366522793,1750301445382,-62088.96,0.00024,2]
[366522794,1750301445391,-160.0,0.00024,7]
[366522795,1750301445400,-160.0,0.00024,7]
[366522796,1750301445410,-158.47,0.00024,2]
[366522797,1750301445420,-3000.0,0.0002401,2]
[366522798,1750301445430,-500.0,0.00024011,2]
[366522799,1750301445440,-174.0,0.00024011,2]
[366522800,1750301445449,-500.0,0.00024011,2]
[366522801,1750301445459,-151.0,0.00024011,2]
[366522802,1750301445468,-500.0,0.00024011,2]
[366522803,1750301445478,-500.0,0.00024011,2]